fUSD/lending_fUSD_20240712
["ID","MTS","AMOUNT","RATE_DAILY","PERIOD"]
[331758792,1720753894248,-295.546662,0.00013907,2]
[331758793,1720753894267,-500.0,0.00013907,2]
[331758794,1720753894282,-629.03,0.00013907,2]
[331758795,1720753894298,-500.0,0.00013907,2]
[331758796,1720753894318,-500.0,0.00013907,2]
[331758797,1720753894336,-2690.48,0.00013907,2]
[331758798,1720753894350,-500.0,0.00013907,2]
[331758799,1720753894369,-500.0,0.00013907,2]
[331758800,1720753894384,-647.99976727,0.00013907,2]
[331758801,1720753894401,-500.0,0.00013907,2]
[331758802,1720753894415,-500.0,0.00013907,2]
[331758803,1720753894433,-500.0,0.00013907,2]
[331758804,1720753894448,-500.0,0.00013907,2]
[331758805,1720753894462,-500.0,0.00013907,2]
[331758806,1720753894477,-500.0,0.00013907,2]
[331758807,1720753894492,-500.0,0.00013907,2]
[331758808,1720753894507,-500.0,0.00013907,2]
[331758809,1720753894523,-500.0,0.00013907,2]
[331758810,1720753894539,-500.0,0.00013907,2]
[331758811,1720753894554,-500.0,0.00013907,2]
[331758812,1720753894571,-500.0,0.00013907,2]
[331758813,1720753894585,-500.0,0.00013907,2]
[331758814,1720753894601,-500.0,0.00013907,2]
[331758815,1720753894617,-500.0,0.00013907,2]
[331758816,1720753894633,-500.0,0.00013907,2]
[331758817,1720753894648,-500.0,0.00013907,2]
[331758818,1720753894662,-817.33,0.00013907,2]
[331758819,1720753894677,-500.0,0.00013907,2]
[331758820,1720753894692,-500.0,0.00013907,2]
[331758821,1720753894708,-150.0,0.00013907,2]
[331758822,1720753894724,-150.0,0.00013907,2]
[331758823,1720753894739,-446.39831792,0.00013908,2]
[331758824,1720753894754,-500.0,0.00013908,2]
[331758825,1720753894769,-500.0,0.00013908,2]
[331758826,1720753894784,-500.0,0.00013908,2]
[331758827,1720753894799,-500.0,0.00013908,2]
[331758828,1720753894815,-166.26770421,0.00013908,2]
[331758829,1720753894830,-500.0,0.00013908,2]
[331758830,1720753894845,-276.46876874,0.00013908,2]
[331758831,1720753894861,-500.0,0.00013908,2]
[331758832,1720753894875,-368.85319479,0.00013908,2]
[331758833,1720753894891,-500.0,0.00013908,2]
[331758834,1720753894904,-382.46030935,0.00013908,2]
[331758835,1720753894919,-500.0,0.00013908,2]
[331758836,1720753894935,-500.0,0.00013908,2]
[331758837,1720753894951,-500.0,0.00013908,2]
[331758838,1720753894964,-500.0,0.00013908,2]
[331758839,1720753894978,-505.1358533,0.00013908,2]
[331758840,1720753894992,-228.45424576,0.00013908,2]
[331758841,1720753895008,-299.39,0.00013908,2]
[331758842,1720753895021,-500.0,0.00013908,2]
[331758843,1720753895035,-500.0,0.00013908,2]
[331758844,1720753895049,-500.0,0.00013908,2]
[331758845,1720753895064,-505.15290829,0.00013908,2]
[331758846,1720753895077,-500.0,0.00013908,2]
[331758847,1720753895093,-500.0,0.00013908,2]
[331758848,1720753895106,-500.0,0.00013908,2]
[331758849,1720753895121,-500.0,0.00013908,2]
[331758850,1720753895136,-311.62344305,0.00013908,2]
[331758851,1720753895151,-513.46606688,0.00013908,2]
[331758852,1720753895165,-500.0,0.00013908,2]
[331758853,1720753895179,-266.06276489,0.00013908,2]
[331758854,1720753895193,-502.07829322,0.00013908,2]
[331758855,1720753895208,-500.0,0.00013908,2]
[331758856,1720753895222,-500.0,0.00013908,2]
[331758857,1720753895235,-357.55356219,0.00013908,2]
[331758858,1720753895250,-500.0,0.00013908,2]
[331758859,1720753895263,-500.0,0.00013908,2]
[331758860,1720753895277,-449.99413447,0.00013908,2]
[331758861,1720753895292,-500.0,0.00013908,2]
[331758862,1720753895306,-500.0,0.00013908,2]
[331758863,1720753895323,-500.0,0.00013908,2]
[331758864,1720753895338,-500.0,0.00013908,2]
[331758865,1720753895352,-396.41893507,0.00013908,2]
[331758866,1720753895366,-403.05290449,0.00013908,2]
[331758867,1720753895380,-500.0,0.00013908,2]
[331758868,1720753895394,-500.0,0.00013908,2]
[331758869,1720753895408,-500.0,0.00013908,2]
[331758870,1720753895423,-252.76393175,0.00013908,2]
[331758871,1720753895437,-500.0,0.00013908,2]
[331758872,1720753895453,-500.0,0.00013908,2]
[331758873,1720753895469,-500.0,0.00013908,2]
[331758874,1720753895484,-500.0,0.00013908,2]
[331758875,1720753895498,-500.0,0.00013908,2]
[331758876,1720753895512,-500.0,0.00013908,2]
[331758877,1720753895526,-500.0,0.00013908,2]
[331758878,1720753895540,-321.07241447,0.00013908,2]
[331758879,1720753895554,-500.0,0.00013908,2]
[331758880,1720753895568,-500.0,0.00013908,2]
[331758881,1720753895582,-500.0,0.00013908,2]
[331758882,1720753895596,-500.0,0.00013908,2]
[331758883,1720753895609,-500.0,0.00013908,2]
[331758884,1720753895622,-500.0,0.00013908,2]
[331758885,1720753895637,-500.0,0.00013908,2]
[331758886,1720753895650,-585.21399932,0.00013908,2]
[331758887,1720753895664,-500.0,0.00013908,2]
[331758888,1720753895677,-500.0,0.00013908,2]
[331758889,1720753895692,-500.0,0.00013908,2]
[331758890,1720753895706,-500.0,0.00013908,2]
[331758891,1720753895720,-244.7613975,0.00013908,2]
[331758892,1720753895735,-500.0,0.00013908,2]
[331758893,1720753895749,-500.0,0.00013908,2]
[331758894,1720753895763,-500.0,0.00013908,2]
[331758895,1720753895777,-191.37760846,0.00013908,2]
[331758896,1720753895791,-500.0,0.00013908,2]
[331758897,1720753895804,-500.0,0.00013908,2]
[331758898,1720753895818,-500.0,0.00013908,2]
[331758899,1720753895831,-457.51711684,0.00013908,2]
[331758900,1720753895846,-500.0,0.00013908,2]
[331758901,1720753895861,-500.0,0.00013908,2]
[331758902,1720753896094,-284.09443993,0.00013908,2]
[331758903,1720753896109,-500.0,0.00013908,2]
[331758904,1720753896119,-500.0,0.00013908,2]
[331758905,1720753896130,-500.0,0.00013908,2]
[331758906,1720753896139,-500.0,0.00013908,2]
[331758907,1720753896149,-500.0,0.00013908,2]
[331758908,1720753896159,-170.57523109,0.00013908,2]
[331758909,1720753896168,-500.0,0.00013908,2]
[331758910,1720753896177,-500.0,0.00013908,2]
[331758911,1720753896188,-268.91356155,0.00013908,2]
[331758912,1720753896198,-500.0,0.00013908,2]
[331758913,1720753896207,-500.0,0.00013908,2]
[331758914,1720753896216,-500.0,0.00013908,2]
[331758915,1720753896226,-500.0,0.00013908,2]
[331758916,1720753896236,-500.0,0.00013908,2]
[331758917,1720753896246,-150.0,0.00013909,2]
[331758918,1720753896255,-150.0,0.00013911,2]
[331758919,1720753896265,-150.0,0.00013911,2]
[331758920,1720753896275,-150.0,0.00013913,2]
[331758921,1720753896284,-753.44,0.00013913,2]
[331758922,1720753896294,-813.83,0.00013913,2]
[331758923,1720753896303,-150.0,0.00013914,2]
[331758924,1720753896312,-500.0,0.00013914,2]
[331758925,1720753896322,-500.0,0.00013914,2]
[331758926,1720753896331,-333.41654316,0.00013914,2]
[331758927,1720753896340,-500.0,0.00013914,2]
[331758928,1720753896350,-500.0,0.00013914,2]
[331758929,1720753896359,-500.0,0.00013914,2]
[331758930,1720753896369,-670.4,0.00013914,2]
[331758931,1720753896378,-505.03,0.00013914,2]
[331758932,1720753896388,-200.02,0.00013914,2]
[331758933,1720753896398,-500.0,0.00013914,2]
[331758934,1720753896407,-235.23813614,0.00013914,2]
[331758935,1720753896417,-500.0,0.00013914,2]
[331758936,1720753896426,-500.0,0.00013914,2]
[331758937,1720753896438,-500.0,0.00013914,2]
[331758938,1720753896448,-500.0,0.00013914,2]
[331758939,1720753896458,-500.0,0.00013914,2]
[331758940,1720753896468,-525.72437359,0.00013914,2]
[331758941,1720753896478,-500.0,0.00013914,2]
[331758942,1720753896487,-500.0,0.00013914,2]
[331758943,1720753896497,-565.99,0.00013914,2]
[331758944,1720753896507,-694.4,0.00013914,2]
[331758945,1720753896516,-662.33,0.00013914,2]
[331758946,1720753896526,-726.76,0.00013914,2]
[331758947,1720753896536,-457.11937474,0.00013914,2]
[331758948,1720753896546,-500.0,0.00013914,2]
[331758949,1720753896556,-500.0,0.00013914,2]
[331758950,1720753896565,-864.4,0.00013914,2]
[331758951,1720753896575,-615.26,0.00013914,2]
[331758952,1720753896585,-500.0,0.00013914,2]
[331758953,1720753896595,-585.35,0.00013914,2]
[331758954,1720753896605,-500.0,0.00013914,2]
[331758955,1720753896614,-776.5,0.00013914,2]
[331758956,1720753896624,-501.9980788,0.00013914,2]
[331758957,1720753896634,-500.0,0.00013914,2]
[331758958,1720753896643,-548.13,0.00013914,2]
[331758959,1720753896653,-718.94,0.00013914,2]
[331758960,1720753896662,-500.0,0.00013914,2]
[331758961,1720753896672,-535.75,0.00013914,2]
[331758962,1720753896682,-500.0,0.00013914,2]
[331758963,1720753896691,-500.0,0.00013914,2]
[331758964,1720753896701,-500.0,0.00013914,2]
[331758965,1720753896710,-905.08,0.00013914,2]
[331758966,1720753896719,-500.0,0.00013914,2]
[331758967,1720753896729,-500.0,0.00013914,2]
[331758968,1720753896739,-541.67,0.00013914,2]
[331758969,1720753896748,-500.0,0.00013914,2]
[331758970,1720753896758,-730.99,0.00013914,2]
[331758971,1720753896768,-500.0,0.00013914,2]
[331758972,1720753896777,-540.61,0.00013914,2]
[331758973,1720753896786,-500.0,0.00013914,2]
[331758974,1720753896796,-984.63,0.00013914,2]
[331758975,1720753896806,-516.40346921,0.00013914,2]
[331758976,1720753896816,-930.59,0.00013914,2]
[331758977,1720753896826,-500.0,0.00013914,2]
[331758978,1720753896835,-500.0,0.00013914,2]
[331758979,1720753896850,-500.0,0.00013914,2]
[331758980,1720753896860,-500.0,0.00013914,2]
[331758981,1720753896869,-633.7,0.00013914,2]
[331758982,1720753896879,-500.0,0.00013914,2]
[331758983,1720753896890,-500.0,0.00013914,2]
[331758984,1720753896899,-500.0,0.00013914,2]
[331758985,1720753896908,-672.77,0.00013914,2]
[331758986,1720753896918,-4929.24,0.00013914,2]
[331758987,1720753896928,-500.0,0.00013914,2]
[331758988,1720753896940,-893.72,0.00013914,2]
[331758989,1720753896950,-1244.72,0.00013914,2]
[331758990,1720753896961,-568.7,0.00013914,2]
[331758991,1720753896970,-500.0,0.00013914,2]
[331758992,1720753896979,-500.0,0.00013914,2]
[331758993,1720753896989,-500.0,0.00013914,2]
[331758994,1720753896998,-500.0,0.00013914,2]
[331758995,1720753897007,-500.0,0.00013914,2]
[331758996,1720753897017,-500.0,0.00013914,2]
[331758997,1720753897026,-559.67,0.00013914,2]
[331758998,1720753897035,-500.0,0.00013914,2]
[331758999,1720753897044,-641.54,0.00013914,2]
[331759000,1720753897054,-151.0,0.00013914,2]
[331759001,1720753897063,-500.0,0.00013914,2]
[331759002,1720753897072,-500.0,0.00013914,2]
[331759003,1720753897082,-500.0,0.00013914,2]
[331759004,1720753897092,-500.0,0.00013914,2]
[331759005,1720753897101,-500.0,0.00013914,2]
[331759006,1720753897110,-151.0,0.00013914,2]
[331759007,1720753897119,-500.0,0.00013914,2]
[331759008,1720753897128,-500.0,0.00013914,2]
[331759009,1720753897138,-151.0,0.00013914,2]
[331759010,1720753897147,-816.28,0.00013914,2]
[331759011,1720753897156,-500.0,0.00013914,2]
[331759012,1720753897166,-500.0,0.00013914,2]
[331759013,1720753897175,-500.0,0.00013914,2]
[331759014,1720753897186,-500.0,0.00013914,2]
[331759015,1720753897196,-659.46,0.00013914,2]
[331759016,1720753897206,-520.9,0.00013914,2]
[331759017,1720753897216,-561.42,0.00013914,2]
[331759018,1720753897225,-549.05,0.00013914,2]
[331759019,1720753897236,-845.75,0.00013914,2]
[331759020,1720753897245,-546.01,0.00013914,2]
[331759021,1720753897255,-630.37,0.00013914,2]
[331759022,1720753897264,-500.0,0.00013914,2]
[331759023,1720753897274,-594.38,0.00013914,2]
[331759024,1720753897283,-500.0,0.00013914,2]
[331759025,1720753897293,-500.0,0.00013914,2]
[331759026,1720753897302,-500.0,0.00013914,2]
[331759027,1720753897312,-766.85,0.00013914,2]
[331759028,1720753897321,-384.09,0.00013914,2]
[331759029,1720753897331,-1279.88,0.00013914,2]
[331759030,1720753897340,-429.12,0.00013914,2]
[331759031,1720753897349,-666.89,0.00013914,2]
[331759032,1720753897358,-500.0,0.00013914,2]
[331759033,1720753897368,-521.11,0.00013914,2]
[331759034,1720753897377,-500.0,0.00013914,2]
[331759035,1720753897387,-1284.67,0.00013914,2]
[331759036,1720753897396,-521.31,0.00013914,2]
[331759037,1720753897406,-151.0,0.00013914,2]
[331759038,1720753897415,-500.0,0.00013914,2]
[331759039,1720753897425,-500.0,0.00013914,2]
[331759040,1720753897437,-151.0,0.00013914,2]
[331759041,1720753897446,-2357.51,0.00013914,2]
[331759042,1720753897455,-536.16,0.00013914,2]
[331759043,1720753897465,-500.0,0.00013914,2]
[331759044,1720753897474,-500.0,0.00013914,2]
[331759045,1720753897483,-2897.7,0.00013914,2]
[331759046,1720753897491,-151.0,0.00013914,2]
[331759047,1720753897501,-500.0,0.00013914,2]
[331759048,1720753897510,-371.831488,0.00013914,2]
[331759049,1720753897520,-2160.68,0.00013914,2]
[331759050,1720753897529,-500.0,0.00013914,2]
[331759051,1720753897539,-371.831488,0.00013914,2]
[331759052,1720753897548,-150.0,0.00013915,2]
[331759053,1720753897557,-150.0,0.00013916,2]
[331759054,1720753897567,-150.0,0.00013917,2]
[331759055,1720753897585,-150.0,0.00013918,2]
[331759056,1720753897595,-264.88003192,0.00013918,2]
[331759057,1720753897605,-150.0,0.00013919,2]
[331759058,1720753897615,-150.0,0.0001392,2]
[331759059,1720753897624,-150.0,0.00013921,2]
[331759060,1720753897634,-150.0,0.00013922,2]
[331759061,1720753897644,-150.0,0.00013923,2]
[331759062,1720753897653,-150.0,0.00013924,2]
[331759063,1720753897663,-150.0,0.00013925,2]
[331759064,1720753897673,-150.0,0.00013927,2]
[331759065,1720753897684,-150.0,0.00013928,2]
[331759066,1720753897693,-150.0,0.00013928,2]
[331759067,1720753897703,-150.0,0.0001393,2]
[331759068,1720753897712,-150.0,0.0001393,2]
[331759069,1720753897722,-150.0,0.00013932,2]
[331759070,1720753897731,-150.0,0.00013933,2]
[331759071,1720753897740,-150.0,0.00013934,2]
[331759072,1720753897750,-150.0,0.00013934,2]
[331759073,1720753897759,-150.0,0.00013936,2]
[331759074,1720753897769,-150.0,0.00013937,2]
[331759075,1720753897778,-150.0,0.00013937,2]
[331759076,1720753897787,-150.0,0.00013938,2]
[331759077,1720753897797,-150.0,0.0001394,2]
[331759078,1720753897806,-150.0,0.00013941,2]
[331759079,1720753897816,-150.0,0.00013942,2]
[331759080,1720753897825,-150.0,0.00013944,2]
[331759081,1720753897835,-150.0,0.00013945,2]
[331759082,1720753897846,-150.0,0.00013945,2]
[331759083,1720753897857,-150.0,0.00013945,2]
[331759084,1720753897866,-150.0,0.00013946,2]
[331759085,1720753897878,-150.0,0.00013948,2]
[331759086,1720753897889,-150.0,0.00013949,2]
[331759087,1720753897900,-150.0,0.0001395,2]
[331759088,1720753897910,-150.0,0.00013952,2]
[331759089,1720753897920,-473.4097067,0.00013953,2]
[331759090,1720753897933,-241.0561506,0.00013953,2]
[331759091,1720753897943,-6522.7812228,0.00013953,2]
[331759092,1720753897952,-150.0,0.00013953,2]
[331759093,1720753897962,-150.0,0.00013954,2]
[331759094,1720753897971,-150.0,0.00013954,2]
[331759095,1720753897981,-931.58,0.00013954,2]
[331759096,1720753897990,-500.0,0.00013954,2]
[331759097,1720753898000,-556.3,0.00013954,2]
[331759098,1720753898009,-500.0,0.00013954,2]
[331759099,1720753898019,-500.0,0.00013954,2]
[331759100,1720753898029,-500.0,0.00013954,2]
[331759101,1720753898038,-524.03,0.00013954,2]
[331759102,1720753898048,-500.0,0.00013954,2]
[331759103,1720753898057,-705.75,0.00013954,2]
[331759104,1720753898067,-500.0,0.00013954,2]
[331759105,1720753898076,-500.0,0.00013954,2]
[331759106,1720753898086,-500.0,0.00013954,2]
[331759107,1720753898095,-715.19,0.00013954,2]
[331759108,1720753898104,-500.0,0.00013954,2]
[331759109,1720753898114,-884.03,0.00013954,2]
[331759110,1720753898123,-500.0,0.00013954,2]
[331759111,1720753898132,-675.85,0.00013954,2]
[331759112,1720753898142,-500.0,0.00013954,2]
[331759113,1720753898151,-500.0,0.00013954,2]
[331759114,1720753898161,-535.78,0.00013954,2]
[331759115,1720753898171,-700.87,0.00013954,2]
[331759116,1720753898180,-1077.47,0.00013954,2]
[331759117,1720753898190,-500.0,0.00013954,2]
[331759118,1720753898199,-500.0,0.00013954,2]
[331759119,1720753898209,-703.64,0.00013954,2]
[331759120,1720753898219,-556.83,0.00013954,2]
[331759121,1720753898228,-962.86,0.00013954,2]
[331759122,1720753898238,-1694.57,0.00013954,2]
[331759123,1720753898247,-500.0,0.00013954,2]
[331759124,1720753898256,-500.0,0.00013954,2]
[331759125,1720753898266,-500.0,0.00013954,2]
[331759126,1720753898275,-1116.48,0.00013954,2]
[331759127,1720753898285,-500.0,0.00013954,2]
[331759128,1720753898295,-1069.45,0.00013954,2]
[331759129,1720753898304,-500.0,0.00013954,2]
[331759130,1720753898314,-500.0,0.00013954,2]
[331759131,1720753898322,-500.0,0.00013954,2]
[331759132,1720753898332,-500.0,0.00013954,2]
[331759133,1720753898341,-545.24,0.00013954,2]
[331759134,1720753898351,-6045.54,0.00013954,2]
[331759135,1720753898360,-743.18,0.00013954,2]
[331759136,1720753898370,-500.0,0.00013955,2]
[331759137,1720753898381,-500.0,0.00013955,2]
[331759138,1720753898391,-500.0,0.00013955,2]
[331759139,1720753898403,-500.0,0.00013955,2]
[331759140,1720753898413,-500.0,0.00013955,2]
[331759141,1720753898423,-500.0,0.00013955,2]
[331759142,1720753898433,-500.0,0.00013955,2]
[331759143,1720753898442,-500.0,0.00013955,2]
[331759144,1720753898451,-500.0,0.00013955,2]
[331759145,1720753898462,-529.35,0.00013955,2]
[331759146,1720753898472,-500.0,0.00013955,2]
[331759147,1720753898483,-500.0,0.00013955,2]
[331759148,1720753898494,-500.0,0.00013955,2]
[331759149,1720753898505,-434.61388329,0.00013955,2]
[331759150,1720753898516,-500.0,0.00013955,2]
[331759151,1720753898527,-204.41756668,0.00013955,2]
[331759152,1720753898538,-500.0,0.00013955,2]
[331759153,1720753898550,-725.68,0.00013955,2]
[331759154,1720753898561,-1276.79,0.00013955,2]
[331759155,1720753898570,-377.68,0.00013955,2]
[331759156,1720753898580,-325.0,0.00013955,2]
[331759157,1720753898591,-1348.93,0.00013955,2]
[331759158,1720753898602,-500.0,0.00013955,2]
[331759159,1720753898613,-318.9,0.00013955,2]
[331759160,1720753898623,-500.0,0.00013955,2]
[331759161,1720753898634,-500.0,0.00013955,2]
[331759162,1720753898646,-561.19,0.00013955,2]
[331759163,1720753898657,-500.0,0.00013955,2]
[331759164,1720753898667,-500.0,0.00013955,2]
[331759165,1720753898679,-500.0,0.00013955,2]
[331759166,1720753898690,-677.8,0.00013955,2]
[331759167,1720753898698,-500.0,0.00013955,2]
[331759168,1720753898707,-500.0,0.00013955,2]
[331759169,1720753898903,-500.0,0.00013955,2]
[331759170,1720753898912,-500.0,0.00013955,2]
[331759171,1720753898924,-500.0,0.00013955,2]
[331759172,1720753898936,-500.0,0.00013955,2]
[331759173,1720753898945,-500.0,0.00013955,2]
[331759174,1720753898956,-500.0,0.00013955,2]
[331759175,1720753898966,-500.0,0.00013955,2]
[331759176,1720753898975,-500.0,0.00013955,2]
[331759177,1720753898984,-500.0,0.00013955,2]
[331759178,1720753898993,-500.0,0.00013955,2]
[331759179,1720753899002,-500.0,0.00013955,2]
[331759180,1720753899012,-500.0,0.00013955,2]
[331759181,1720753899021,-541.73,0.00013955,2]
[331759182,1720753899030,-703.46,0.00013955,2]
[331759183,1720753899039,-500.0,0.00013955,2]
[331759184,1720753899048,-500.0,0.00013955,2]
[331759185,1720753899057,-649.53693826,0.00013955,2]
[331759186,1720753899066,-773.57,0.00013955,2]
[331759187,1720753899075,-500.0,0.00013955,2]
[331759188,1720753899085,-456.48,0.00013955,2]
[331759189,1720753899094,-500.0,0.00013955,2]
[331759190,1720753899103,-500.0,0.00013955,2]
[331759191,1720753899112,-500.0,0.00013955,2]
[331759192,1720753899120,-500.0,0.00013955,2]
[331759193,1720753899129,-632.09458026,0.00013955,2]
[331759194,1720753899139,-606.03,0.00013955,2]
[331759195,1720753899148,-500.0,0.00013955,2]
[331759196,1720753899157,-378.21056922,0.00013955,2]
[331759197,1720753899167,-500.0,0.00013955,2]
[331759198,1720753899177,-500.0,0.00013955,2]
[331759199,1720753899186,-500.0,0.00013955,2]
[331759200,1720753899196,-367.38,0.00013955,2]
[331759201,1720753899206,-500.0,0.00013955,2]
[331759202,1720753899215,-500.0,0.00013955,2]
[331759203,1720753899224,-500.0,0.00013955,2]
[331759204,1720753899234,-500.0,0.00013955,2]
[331759205,1720753899243,-422.51435156,0.00013955,2]
[331759206,1720753899252,-681.53,0.00013955,2]
[331759207,1720753899262,-545.65,0.00013955,2]
[331759208,1720753899271,-500.0,0.00013955,2]
[331759209,1720753899282,-500.0,0.00013955,2]
[331759210,1720753899291,-500.0,0.00013955,2]
[331759211,1720753899300,-500.0,0.00013955,2]
[331759212,1720753899309,-500.0,0.00013955,2]
[331759213,1720753899318,-500.0,0.00013955,2]
[331759214,1720753899327,-500.0,0.00013955,2]
[331759215,1720753899337,-1444.32,0.00013955,2]
[331759216,1720753899346,-525.46,0.00013955,2]
[331759217,1720753899355,-500.0,0.00013955,2]
[331759218,1720753899364,-750.07,0.00013955,2]
[331759219,1720753899373,-500.0,0.00013955,2]
[331759220,1720753899383,-500.0,0.00013955,2]
[331759221,1720753899392,-981.93,0.00013955,2]
[331759222,1720753899401,-165.76,0.00013955,2]
[331759223,1720753899411,-500.0,0.00013955,2]
[331759224,1720753899420,-500.0,0.00013955,2]
[331759225,1720753899429,-500.0,0.00013955,2]
[331759226,1720753899439,-500.0,0.00013955,2]
[331759227,1720753899449,-500.0,0.00013955,2]
[331759228,1720753899458,-1556.64,0.00013955,2]
[331759229,1720753899467,-500.0,0.00013955,2]
[331759230,1720753899476,-500.0,0.00013955,2]
[331759231,1720753899486,-500.0,0.00013955,2]
[331759232,1720753899495,-500.0,0.00013955,2]
[331759233,1720753899505,-500.0,0.00013955,2]
[331759234,1720753899515,-500.0,0.00013955,2]
[331759235,1720753899524,-500.0,0.00013955,2]
[331759236,1720753899533,-500.0,0.00013955,2]
[331759237,1720753899542,-500.0,0.00013955,2]
[331759238,1720753899551,-500.0,0.00013955,2]
[331759239,1720753899561,-500.0,0.00013955,2]
[331759240,1720753899570,-500.0,0.00013955,2]
[331759241,1720753899579,-500.0,0.00013955,2]
[331759242,1720753899588,-500.0,0.00013955,2]
[331759243,1720753899597,-500.0,0.00013955,2]
[331759244,1720753899606,-500.0,0.00013955,2]
[331759245,1720753899615,-500.0,0.00013955,2]
[331759246,1720753899624,-500.0,0.00013955,2]
[331759247,1720753899633,-584.46,0.00013955,2]
[331759248,1720753899643,-500.0,0.00013955,2]
[331759249,1720753899652,-500.0,0.00013955,2]
[331759250,1720753899662,-500.0,0.00013955,2]
[331759251,1720753899673,-483.92,0.00013955,2]
[331759252,1720753899684,-500.0,0.00013955,2]
[331759253,1720753899695,-500.0,0.00013955,2]
[331759254,1720753899705,-449.8,0.00013955,2]
[331759255,1720753899715,-500.0,0.00013955,2]
[331759256,1720753899725,-500.0,0.00013955,2]
[331759257,1720753899734,-585.89,0.00013955,2]
[331759258,1720753899743,-500.0,0.00013955,2]
[331759259,1720753899752,-500.0,0.00013955,2]
[331759260,1720753899763,-500.0,0.00013955,2]
[331759261,1720753899773,-500.0,0.00013955,2]
[331759262,1720753899785,-500.0,0.00013955,2]
[331759263,1720753899795,-500.0,0.00013955,2]
[331759264,1720753899804,-500.0,0.00013955,2]
[331759265,1720753899814,-500.0,0.00013955,2]
[331759266,1720753899824,-500.0,0.00013955,2]
[331759267,1720753899834,-673.58,0.00013955,2]
[331759268,1720753899846,-474.81,0.00013955,2]
[331759269,1720753899858,-500.0,0.00013955,2]
[331759270,1720753899867,-500.0,0.00013955,2]
[331759271,1720753899877,-500.0,0.00013955,2]
[331759272,1720753899888,-500.0,0.00013955,2]
[331759273,1720753899898,-500.0,0.00013955,2]
[331759274,1720753899907,-500.0,0.00013955,2]
[331759275,1720753899917,-500.0,0.00013955,2]
[331759276,1720753899929,-500.0,0.00013955,2]
[331759277,1720753899940,-463.68,0.00013955,2]
[331759278,1720753899949,-827.0,0.00013955,2]
[331759279,1720753899958,-500.0,0.00013955,2]
[331759280,1720753899967,-500.0,0.00013955,2]
[331759281,1720753899976,-238.428588,0.00013955,2]
[331759282,1720753899986,-329.19,0.00013955,2]
[331759283,1720753899995,-500.0,0.00013955,2]
[331759284,1720753900005,-500.0,0.00013955,2]
[331759285,1720753900015,-782.23,0.00013955,2]
[331759286,1720753900025,-151.0,0.00013955,2]
[331759287,1720753900035,-500.0,0.00013955,2]
[331759288,1720753900044,-238.428588,0.00013955,2]
[331759289,1720753900053,-405.78,0.00013955,2]
[331759290,1720753900062,-151.0,0.00013955,2]
[331759291,1720753900071,-339.48,0.00013955,2]